bitfinex-derivatives/quotes_ETHF0:USTF0_20251213
["timestamp","ask_amount","ask_price","bid_price","bid_amount"]
[1765625645760,4.26205939,3120.9,3120.8,0.0024843]
[1765625646354,4.26205939,3120.9,3120.8,0.7735843]
[1765625646555,4.26205939,3120.9,3120.8,1.4917843]
[1765625647154,4.26205939,3120.9,3120.8,0.7735843]
[1765625649041,4.26205939,3120.9,3120.8,0.0024843]
[1765625651758,3.2078,3120.9,3120.8,1.4917843]
[1765625651959,4.26205939,3120.9,3120.8,1.4917843]
[1765625655358,5.34383663,3120.9,3120.8,1.4917843]
[1765625658462,4.28957724,3120.9,3120.8,1.4917843]
[1765625659763,5.34383663,3120.9,3120.8,1.4917843]
[1765625661468,4.26205939,3120.9,3120.8,1.4917843]
[1765625661667,5.34483402,3120.9,3120.8,1.4917843]
[1765625662365,5.34483402,3120.9,3119.3,3.2078]
[1765625662366,0.16022,3120.4,3119.3,3.2078]
[1765625662571,1.05425939,3119.6,3119.3,3.2078]
[1765625662771,2.13703402,3119.6,3119.3,3.2078]
[1765625663358,2.13703402,3119.6,3119.5,1.19032507]
[1765625663565,2.13703402,3119.6,3119.5,1.91512507]
[1765625663868,1.08277463,3119.6,3119.5,1.91512507]
[1765625664372,3.2078,3120.1,3120.0,1.915]
[1765625664567,4.28942818,3120.1,3120.0,1.915]
[1765625664761,4.28942818,3120.1,3120.0,0.4235]
[1765625665258,4.28942818,3120.1,3120.0,1.8969]
[1765625674080,3.2078,3120.1,3120.0,1.8969]
[1765625674981,0.00480046,3120.3,3120.2,1.4734]
[1765625675182,1.08748544,3120.3,3120.2,1.4734]
[1765625675778,1.08748544,3120.3,3120.0,1.1916]
[1765625675977,1.08748544,3120.3,3120.0,0.4235]
[1765625675978,1.08268498,3120.2,3120.0,0.4235]
[1765625676175,0.00480046,3120.3,3120.0,0.4235]
[1765625676377,1.08259133,3120.2,3120.0,0.4235]
[1765625676584,0.00480046,3120.3,3120.0,0.4235]
[1765625676785,1.08257979,3120.2,3120.0,0.4235]
[1765625677084,0.00480046,3120.3,3120.0,1.1916]
[1765625677287,1.08231827,3120.2,3120.0,1.1916]
[1765625677480,0.00480046,3120.3,3120.0,1.1916]
[1765625677785,1.08231725,3120.2,3120.0,1.1916]
[1765625677985,0.00480046,3120.3,3120.0,1.1916]
[1765625679392,0.00480046,3120.3,3120.2,0.7681]
[1765625679792,0.00480046,3120.3,3120.2,1.4734]
[1765625679990,0.00480046,3120.3,3120.0,1.1916]
[1765625680793,0.00480046,3120.3,3120.2,1.4734]
[1765625683998,1.05923909,3120.3,3120.2,1.4734]
[1765625684900,1.05923909,3120.3,3120.2,0.7681]
[1765625686601,1.05923909,3120.3,3120.0,1.1916]
[1765625688003,1.05443863,3120.1,3120.0,1.8969]
[1765625688909,0.00480046,3120.3,3120.0,1.8969]
[1765625689107,1.05443863,3120.1,3120.0,1.8969]
[1765625689407,1.05443863,3120.1,3120.0,1.1916]
[1765625690598,1.05443863,3120.1,3120.0,0.4235]
[1765625692898,0.00480046,3120.3,3120.2,1.4734]
[1765625693102,2.14588469,3120.3,3120.2,1.4734]
[1765625693603,2.14588469,3120.3,3120.2,0.7681]
[1765625696813,2.14588469,3120.3,3120.2,1.4914]
[1765625697013,2.14588469,3120.3,3120.0,1.1945]
[1765625697212,1.0866456,3120.2,3120.0,1.1945]
[1765625697514,1.05923909,3120.3,3120.2,1.4943]
[1765625697709,2.14684813,3120.3,3120.2,1.4943]
[1765625700113,2.14684813,3120.3,3120.0,1.1945]
[1765625700413,2.14684813,3120.3,3120.0,0.4235]
[1765625700414,1.08760904,3120.2,3120.0,0.4235]
[1765625700612,2.14204767,3120.1,3120.0,0.4235]
[1765625701209,1.08760904,3120.1,3120.0,0.4235]
[1765625701710,1.08760904,3120.1,3120.0,1.1945]
[1765625701905,1.08760904,3120.1,3120.0,1.9178]
[1765625703718,0.00480046,3120.3,3120.2,1.4943]
[1765625703918,2.14682914,3120.3,3120.2,1.4943]
[1765625711724,2.14682914,3120.3,3120.0,0.4235]
[1765625711725,3.2078,3120.8,3120.7,1.4943]
[1765625711920,4.29578747,3120.8,3120.7,1.4943]
[1765625712123,5.3502261,3120.8,3120.7,1.4943]
[1765625714431,4.29578747,3120.8,3120.7,1.4943]
[1765625715119,3.2078,3120.8,3120.7,1.4943]
[1765625719527,0.00480839,3121.1,3121.0,1.947]
[1765625727631,0.00480839,3121.1,3121.0,0.4527]
[1765625728233,1.09791171,3121.1,3121.0,0.4527]
[1765625729636,1.09791171,3121.1,3120.5,1.1692]
[1765625729837,5.31560162,3120.6,3120.5,1.1692]
[1765625730032,4.26170081,3120.6,3120.5,1.1692]
[1765625730229,4.26170081,3120.6,3120.5,0.4527]
[1765625730436,5.31560162,3120.6,3120.5,0.4527]
[1765625730736,6.40864283,3120.6,3120.5,0.4527]
[1765625732038,9.57360416,3120.6,3120.0,0.4235]
[1765625732337,5.31690518,3120.1,3120.0,0.4235]
[1765625733834,5.31690518,3120.1,3120.0,1.14]
[1765625734641,5.31690518,3120.1,3120.0,1.8366]
[1765625734843,4.26235259,3120.1,3120.0,1.8366]
[1765625738937,3.2078,3120.1,3120.0,1.8366]
[1765625739138,4.26235259,3120.1,3120.0,1.8366]
[1765625742644,3.2078,3120.1,3120.0,1.8366]
[1765625742849,4.26235259,3120.1,3120.0,1.8366]
[1765625744642,5.31690518,3120.1,3120.0,1.8366]
[1765625746354,4.26235259,3120.1,3120.0,1.8366]
[1765625746852,5.31690518,3120.1,3120.0,1.14]
[1765625747444,5.31690518,3120.1,3120.0,0.4235]
[1765625747956,5.31690518,3120.1,3120.0,1.14]
[1765625748747,4.26235259,3120.1,3120.0,1.8366]
[1765625751557,4.2624164,3120.1,3120.0,1.8366]
[1765625756663,2.428602,3120.9,3120.8,1.4539]
[1765625756858,6.8243176,3120.9,3120.0,3.6313]
[1765625757165,0.7187,3120.4,3120.3,1.4539]
[1765625757761,1.4678,3120.4,3120.3,1.4539]
[1765625758354,2.5224164,3120.4,3120.3,1.4539]
[1765625758968,1.7733164,3120.4,3120.3,1.4539]
[1765625759669,1.0546164,3120.4,3120.3,1.4539]
[1765625760966,2.5224164,3120.4,3120.3,1.4539]
[1765625763069,0.7187,3120.4,3120.3,1.4539]
[1765625763264,3.9265,3120.9,3120.5,0.3826]
[1765625763572,0.00480839,3121.1,3120.5,0.3826]
[1765625763573,1.05942479,3121.1,3121.0,1.8734]
[1765625763871,3.62276609,3121.1,3121.0,1.8734]
[1765625765370,2.52722479,3121.1,3121.0,1.8734]
[1765625765775,1.77812479,3121.1,3121.0,1.8734]
[1765625766368,2.52722479,3121.1,3121.0,1.8734]
[1765625766869,2.52722479,3121.1,3121.0,1.4539]
[1765625768776,0.7187,3120.6,3120.5,1.8365]
[1765625768970,1.4678,3120.6,3120.5,1.8365]
[1765625769275,1.7733164,3120.9,3120.8,1.4539]
[1765625770166,1.0546164,3120.9,3120.8,1.4539]
[1765625770769,1.47260839,3121.1,3121.0,1.4539]
[1765625770969,2.52722479,3121.1,3121.0,1.4539]
[1765625771269,2.52722479,3121.1,3121.0,1.8734]
[1765625771270,1.77812479,3121.1,3121.0,1.8734]
[1765625771470,2.52722479,3121.1,3121.0,1.8734]
[1765625771671,2.52722479,3121.1,3121.0,1.4539]
[1765625774182,1.05942479,3121.1,3121.0,1.8734]
[1765625774681,1.77812479,3121.1,3121.0,1.8734]
[1765625775181,1.47260839,3121.1,3121.0,0.7131]
[1765625775381,1.4678,3120.9,3120.8,3.9209]
[1765625775682,2.5224164,3120.9,3120.8,3.9209]
[1765625776076,2.5224164,3120.9,3120.8,3.2078]
[1765625778377,1.4678,3120.4,3120.3,4.6617]
[1765625778680,2.5224164,3120.4,3120.3,4.6617]
[1765625779082,2.5224164,3120.4,3120.3,3.9209]
[1765625779980,2.5224164,3120.4,3120.3,4.6617]
[1765625785882,1.0546164,3120.4,3120.3,4.6617]
[1765625787189,1.05420702,3120.4,3120.3,4.6617]
[1765625790583,1.78820702,3120.4,3120.3,4.6617]
[1765625790990,2.55260702,3120.4,3120.3,4.6617]
[1765625791188,1.78820702,3120.4,3120.3,4.6617]
[1765625791890,0.734,3120.4,3120.3,4.6617]
[1765625792088,1.05425521,3120.5,3120.4,1.4603]
[1765625792491,1.78825521,3120.5,3120.4,1.4603]
[1765625793293,1.05425521,3120.5,3120.4,1.4603]
[1765625794291,0.4408,3121.0,3120.4,1.4603]
[1765625794491,0.734,3120.6,3120.5,1.8909]
[1765625794695,1.78825521,3120.6,3120.5,1.8909]
[1765625794996,2.55265521,3120.6,3120.5,0.7433]
[1765625795397,2.55265521,3120.6,3120.5,1.4603]
[1765625797499,2.55265521,3120.6,3120.5,0.7433]
[1765625797999,2.55265521,3120.6,3120.5,1.4603]
[1765625800204,1.4984,3120.4,3120.3,3.2078]
[1765625800402,2.55265521,3120.4,3120.3,4.6681]
[1765625800594,2.55265521,3120.4,3120.3,3.9511]
[1765625800906,2.55265521,3120.4,3120.3,3.2078]
[1765625801403,2.55265521,3120.4,3120.3,3.9511]
[1765625804397,2.55265521,3120.4,3120.3,4.6681]
[1765625804992,2.55265521,3120.4,3120.3,3.9511]
[1765625811016,2.55265521,3120.4,3120.3,3.2078]
[1765625811714,2.55265521,3120.4,3120.3,3.9511]
[1765625813619,2.55265521,3120.4,3120.3,3.2078]
[1765625815215,2.55265521,3120.4,3120.3,3.9511]
[1765625816920,2.55265521,3120.4,3120.3,0.7433]
[1765625817919,2.55265521,3120.4,3120.3,1.4491]
[1765625818721,2.55265521,3120.4,3120.3,0.7433]
[1765625819022,3.64664306,3120.4,3120.3,0.7433]
[1765625822215,3.64664306,3120.4,3120.3,1.4491]
[1765625822723,3.64684851,3120.4,3120.3,1.4491]
[1765625824321,3.64684851,3120.4,3120.3,0.7433]
[1765625827019,1.4176,3120.3,3120.2,3.9284]
[1765625828218,1.4176,3120.3,3120.2,3.2078]
[1765625828423,2.51126579,3120.3,3120.2,3.2078]
[1765625830522,1.4176,3120.1,3120.0,3.2078]
[1765625830715,2.47206066,3120.1,3120.0,3.9284]
[1765625833022,2.47206066,3120.1,3120.0,0.7206]
[1765625833223,2.47206066,3120.1,3120.0,3.9284]
[1765625833425,2.47206066,3120.1,3120.0,4.6342]
[1765625834020,1.75146066,3120.1,3120.0,4.6342]
[1765625834320,1.75146066,3120.1,3120.0,5.0507]
[1765625834514,1.1318,3120.5,3120.4,0.7206]
[1765625834720,2.94426436,3120.5,3120.4,0.7206]
[1765625834922,2.94426436,3120.5,3120.0,3.6243]
[1765625835122,2.50946436,3120.4,3120.3,0.7206]
[1765625835840,1.4176,3120.1,3120.0,5.0507]
[1765625836225,2.47206066,3120.1,3120.0,5.0507]
[1765625842332,2.47206066,3120.1,3120.0,4.6342]
[1765625843228,2.47206066,3120.1,3120.0,3.9284]
[1765625843428,2.47206066,3120.1,3120.0,4.6279]
[1765625845731,2.47206066,3120.1,3120.0,1.4201]
[1765625848437,3.5643896,3120.1,3120.0,1.4452]
[1765625849034,1.9111,3120.0,3119.9,3.2078]
[1765625849227,3.00342894,3120.0,3119.9,3.2078]
[1765625850234,3.00342894,3120.0,3119.9,3.9592]
[1765625851235,3.00342894,3120.0,3119.9,4.6838]
[1765625851440,1.09232894,3120.0,3119.9,4.6838]
[1765625853636,1.79492894,3120.0,3119.9,4.6838]
[1765625854044,2.84958904,3120.0,3119.9,4.6838]
[1765625854947,3.90424914,3120.0,3119.9,4.6838]
[1765625855138,4.65074914,3120.0,3119.9,3.9592]
[1765625855340,5.11274914,3120.0,3119.9,3.9592]
[1765625856546,5.11274914,3120.0,3119.9,4.6838]
[1765625856547,4.05808904,3120.0,3119.9,4.6838]
[1765625857041,3.59608904,3120.0,3119.9,4.6838]
[1765625859649,2.84963938,3120.0,3119.9,4.6838]
[1765625860049,2.14703938,3120.0,3119.9,4.6838]
[1765625861052,2.84963938,3120.0,3119.9,4.6838]
[1765625861350,2.14703938,3120.0,3119.9,4.6838]
[1765625861846,3.59613938,3120.0,3119.9,4.6838]
[1765625862048,3.90434982,3120.0,3119.9,4.6838]
[1765625862344,4.65084982,3120.0,3119.9,4.6838]
[1765625864052,3.90434982,3120.0,3119.9,4.6838]
[1765625864355,4.65084982,3120.0,3119.9,4.6838]
[1765625865050,3.90434982,3120.0,3119.9,4.6838]
[1765625865550,3.90434982,3120.0,3119.9,1.476]
[1765625867052,3.59613938,3120.0,3119.9,1.476]
[1765625867552,2.84963938,3120.0,3119.9,1.476]
[1765625867753,2.14703938,3120.0,3119.9,1.476]
[1765625868952,2.84963938,3120.0,3119.9,1.476]
[1765625870655,1.79492894,3120.0,3119.9,1.476]
[1765625870846,2.84963938,3120.0,3119.9,1.476]
[1765625873259,1.09232894,3120.0,3119.9,1.476]
[1765625873555,2.14703938,3120.0,3119.9,1.476]
[1765625873857,1.05471044,3120.0,3119.9,1.476]
[1765625874157,2.14635472,3120.0,3119.9,1.476]
[1765625874453,1.05471044,3120.0,3119.9,1.476]
[1765625875946,0.4348,3120.5,3119.9,1.476]
[1765625876146,1.05471044,3120.0,3119.9,1.476]
[1765625878057,1.82391044,3120.0,3119.9,1.476]
[1765625878560,1.05471044,3120.0,3119.9,1.476]
[1765625879266,2.14678419,3120.0,3119.9,1.476]
[1765625879458,1.05471044,3120.0,3119.9,1.476]
[1765625879859,1.05471044,3120.0,3119.6,3.2078]
[1765625879860,1.4714,3119.7,3119.6,4.6409]
[1765625880065,2.52611044,3119.7,3119.6,4.6409]
[1765625880265,1.82391044,3119.7,3119.6,4.6409]
[1765625880469,2.52611044,3119.7,3119.6,4.6409]
[1765625880656,0.7692,3119.7,3119.6,4.6409]
[1765625880861,1.82391044,3119.7,3119.6,4.6409]
[1765625881158,1.9274,3120.0,3119.9,1.4331]
[1765625881365,4.07418365,3120.0,3119.9,0.7313]
[1765625882263,1.4714,3119.7,3119.6,4.6409]
[1765625882470,1.82391044,3119.7,3119.6,4.6409]
[1765625883970,1.05471044,3119.7,3119.6,4.6409]
[1765625887266,2.52611044,3119.7,3119.6,4.6409]
[1765625887672,1.82391044,3119.7,3119.6,4.6409]
[1765625888275,1.05471044,3119.7,3119.6,4.6409]
[1765625891167,1.82391044,3119.7,3119.6,4.6409]
[1765625891773,1.82391044,3119.7,3119.6,1.4331]
[1765625891979,1.82391044,3119.7,3119.6,4.6409]
[1765625892375,0.7692,3119.7,3119.6,4.6409]
[1765625892679,1.9274,3120.0,3119.9,1.4331]
[1765625892870,3.01935522,3120.0,3119.9,1.4331]
[1765625893678,5.1287761,3120.0,3119.9,1.4331]
[1765625894281,5.1287761,3120.0,3119.9,0.7313]
[1765625894780,5.1287761,3120.0,3119.9,1.4331]
[1765625894983,5.12882904,3120.0,3119.9,1.4331]
[1765625895482,5.12882904,3120.0,3119.9,0.7313]
[1765625897688,4.07409213,3120.0,3119.9,0.7313]
[1765625898288,1.4714,3119.7,3119.6,4.6409]
[1765625898586,2.52613691,3119.7,3119.6,4.6409]
[1765625899189,1.82393691,3119.7,3119.6,4.6409]
[1765625900179,1.05473691,3119.7,3119.6,4.6409]
[1765625900382,3.2078,3120.4,3119.9,1.4331]
[1765625900582,3.2078,3120.4,3120.3,1.4331]
[1765625900583,4.6792,3120.4,3120.3,1.4331]
[1765625900783,1.86687814,3120.4,3120.3,1.4331]
[1765625900984,2.15241505,3120.4,3120.3,1.4331]
[1765625901380,1.05473691,3120.4,3120.3,1.4331]
[1765625902781,1.05473691,3120.6,3120.5,1.1215]
[1765625902980,2.15171513,3120.6,3120.5,1.8669]
[1765625903181,1.05473691,3120.6,3120.5,1.8669]
[1765625903784,1.82483691,3120.6,3120.5,1.8496]
[1765625905087,2.53513691,3120.6,3120.5,1.8496]
[1765625905989,1.82483691,3120.6,3120.5,1.8496]
[1765625906693,1.05473691,3120.6,3120.5,1.8496]
[1765625907289,1.79933691,3120.6,3120.5,1.8496]
[1765625908290,2.49783691,3120.6,3120.5,1.8496]
[1765625908491,2.49783691,3120.6,3120.5,1.4443]
[1765625911089,1.79933691,3120.6,3120.5,1.4443]
[1765625911289,2.49783691,3120.6,3120.5,1.4443]
[1765625913395,2.49783691,3120.6,3120.5,0.7454]
[1765625913695,2.49783691,3120.6,3120.5,1.4784]
[1765625913896,1.4431,3120.6,3120.5,1.4784]
[1765625914090,1.8761,3120.5,3120.4,3.2078]
[1765625914492,1.8761,3120.5,3120.4,3.9694]
[1765625914895,1.8761,3120.5,3120.4,4.7024]
[1765625916095,1.8761,3120.5,3120.4,3.9694]
[1765625916295,1.8761,3120.5,3120.4,4.7024]
[1765625916494,2.93021363,3120.5,3120.4,4.7024]
[1765625918689,2.49721363,3120.5,3120.4,4.7024]
[1765625919097,1.79871363,3120.5,3120.4,4.7024]
[1765625920794,0.7446,3120.5,3120.4,4.7024]
[1765625920998,2.49721363,3120.7,3120.6,1.4946]
[1765625922996,1.79871363,3120.7,3120.6,1.4946]
[1765625923397,2.49721363,3120.7,3120.6,1.4946]
[1765625925701,1.4431,3120.7,3120.6,1.4946]
[1765625927504,0.7446,3120.7,3120.6,1.4946]
[1765625928206,1.4431,3120.7,3120.6,1.4946]
[1765625928400,2.53990151,3120.7,3120.6,1.4946]
[1765625938618,2.53990151,3120.7,3120.6,0.7616]
[1765625939422,2.53990151,3120.7,3120.6,1.5234]
[1765625940015,2.53990151,3120.7,3120.6,0.7616]
[1765625943714,2.53990151,3120.7,3120.6,1.5234]
[1765625944420,2.53990151,3120.7,3120.6,0.7616]
[1765625944820,2.53990151,3120.7,3120.6,1.5234]
[1765625945019,2.53990151,3120.7,3120.6,0.7616]
[1765625945327,2.53990151,3120.7,3120.6,1.5234]
[1765625945713,1.09680151,3120.7,3120.6,1.5234]
[1765625946012,1.42040839,3121.1,3121.0,1.5161]
[1765625946207,2.52039163,3121.1,3121.0,4.7239]
[1765625946411,0.71730839,3121.1,3121.0,5.1503]
[1765625947014,1.42040839,3121.1,3121.0,5.1503]
[1765625948812,0.71730839,3121.1,3121.0,5.1503]
[1765625949819,1.42040839,3121.1,3121.0,5.1503]
[1765625950026,0.71730839,3121.1,3121.0,5.1503]
[1765625951817,1.42040839,3121.1,3121.0,5.1503]
[1765625952925,0.71730839,3121.1,3121.0,5.1503]
[1765625954529,0.00480839,3121.1,3121.0,5.1503]
[1765625956928,0.71730839,3121.1,3121.0,5.1503]
[1765625958231,0.00480839,3121.1,3121.0,5.1503]
[1765625959522,0.456,3122.0,3121.2,1.5161]
[1765625959727,1.4156,3121.6,3121.5,3.9621]
[1765625960032,2.46962759,3121.6,3121.5,3.2078]
[1765625960223,1.4156,3121.2,3121.1,44.0078]
[1765625960424,2.46962759,3121.2,3121.1,44.0078]
[1765625960728,2.47284884,3121.2,3121.1,44.0078]
[1765625961130,2.47284884,3121.2,3121.1,4.7239]
[1765625965939,1.41882125,3121.2,3121.1,4.7239]
[1765625966237,0.71572125,3121.2,3121.1,4.7239]
[1765625966438,0.00322125,3121.2,3121.1,4.7239]
[1765625968136,4.26144954,3121.9,3121.8,1.4351]
[1765625968539,0.7106,3121.6,3121.5,5.0285]
[1765625968733,4.66,3121.9,3121.8,0.6961]
[1765625969141,4.66274451,3121.9,3121.8,1.43821294]
[1765625973141,4.66274451,3121.9,3121.8,0.69921294]
[1765625973542,4.66274451,3121.9,3121.8,0.00311294]
[1765625974446,5.75938846,3121.9,3121.8,0.00311294]
[1765625975948,6.81291906,3121.9,3121.8,0.00311294]
[1765625977247,2.55158846,3121.9,3121.8,0.00311294]
[1765625978146,3.60511906,3121.9,3121.8,0.69921294]
[1765625978857,3.60511906,3121.9,3121.8,0.00311294]
[1765625984244,3.60511906,3121.9,3121.8,0.69921294]
[1765625984949,3.60511906,3121.9,3121.8,0.00311294]
[1765625989661,3.60511906,3121.9,3121.8,0.69921294]
[1765625989852,3.60511906,3121.9,3121.8,0.00311294]
[1765625990357,3.60511906,3121.9,3121.8,0.69921294]
[1765625990656,3.60511906,3121.9,3121.8,1.43821294]
[1765625991158,3.60511906,3121.9,3121.8,0.69921294]
[1765625993551,3.60511906,3121.9,3121.8,0.00311294]
[1765626000358,1.3963,3121.3,3121.2,4.6828]
[1765626000559,2.4498306,3121.3,3121.2,4.6828]
[1765626001556,2.4498306,3121.3,3121.2,4.68615756]
[1765626002165,2.44989418,3121.3,3121.2,4.68615756]
[1765626005867,1.74909418,3121.3,3121.2,4.68615756]
[1765626006366,2.44989418,3121.3,3121.2,4.68615756]
[1765626011376,1.74909418,3121.3,3121.2,4.68615756]
[1765626012966,2.44989418,3121.3,3121.2,3.92625756]
[1765626013274,2.44989418,3121.3,3121.2,4.68615756]
[1765626016869,2.44989418,3121.3,3121.2,3.92625756]
[1765626018878,2.44989418,3121.3,3121.2,4.68615756]
[1765626019581,2.44989418,3121.3,3121.2,1.47835756]
[1765626019981,2.44989418,3121.3,3121.2,4.68615756]
[1765626020170,2.44989418,3121.3,3121.2,3.92625756]
[1765626020782,2.44989418,3121.3,3121.2,4.68615756]
[1765626021584,2.44989418,3121.3,3121.2,1.47835756]
[1765626021882,2.44989418,3121.3,3121.2,4.68615756]
[1765626022984,2.44989418,3121.3,3121.2,3.92625756]
[1765626023171,2.44989418,3121.3,3121.2,3.21115756]
[1765626023576,2.44989418,3121.3,3121.2,3.94955756]
[1765626024282,4.60213623,3121.3,3121.2,3.21115756]
[1765626030090,4.60213623,3121.3,3121.2,0.00335756]
[1765626031090,4.60213623,3121.3,3121.2,0.76135756]
[1765626034298,4.60213623,3121.3,3121.2,0.00335756]
[1765626035096,1.5037,3121.2,3121.1,3.2078]
[1765626035296,1.5037,3120.9,3120.8,0.00480839]
[1765626035496,3.65594205,3120.9,3120.8,0.00480839]
[1765626036204,3.65594205,3120.9,3120.8,0.0085529]
[1765626036503,3.65594205,3120.9,3120.8,0.7665529]
[1765626036802,3.65594205,3120.9,3120.8,1.5215529]
[1765626037199,2.55729418,3120.9,3120.8,1.5215529]
[1765626037899,2.55764666,3120.9,3120.8,1.5215529]
[1765626038405,2.55764509,3120.9,3120.8,1.5215529]
[1765626040603,1.05394509,3121.0,3120.8,1.5215529]
[1765626040798,1.05394509,3121.0,3120.9,1.513]
[1765626040992,1.81714509,3121.0,3120.9,1.513]
[1765626041599,2.55764509,3121.0,3120.9,1.513]
[1765626043307,3.65627212,3121.0,3120.9,1.513]
[1765626044513,2.55764509,3121.0,3120.9,1.513]
[1765626044707,4.7115,3121.2,3121.1,1.513]
[1765626044912,5.06973085,3121.2,3121.1,1.513]
[1765626045111,5.81023085,3121.2,3121.1,1.513]
[1765626046912,5.81023085,3121.2,3121.1,0.758]
[1765626047211,6.86417594,3121.2,3121.1,1.513]
[1765626048013,6.86417594,3121.2,3121.1,0.758]
[1765626048214,5.81023085,3121.2,3121.1,1.513]
[1765626048910,1.5037,3120.9,3120.8,0.0085529]
[1765626049107,2.55764509,3120.9,3120.8,0.0085529]
[1765626052611,2.55764509,3120.9,3120.8,0.7665529]
[1765626054813,4.6257,3121.2,3121.1,1.465]
[1765626055013,5.72529163,3121.2,3121.1,1.465]
[1765626056412,5.72529163,3121.2,3121.1,0.6997]
[1765626057218,0.7129,3120.9,3120.8,1.4735529]
[1765626057714,1.4179,3120.9,3120.8,1.4735529]
[1765626060419,0.7129,3120.9,3120.8,1.4735529]
[1765626060610,4.6257,3121.2,3121.1,1.465]
[1765626060816,5.7252144,3121.2,3121.1,1.465]
[1765626062422,2.5174144,3121.2,3121.1,1.465]
[1765626064822,2.5174144,3121.2,3121.1,0.6997]
[1765626065318,2.5174144,3121.2,3121.1,1.465]
[1765626067924,2.5174144,3121.2,3121.1,0.6997]
[1765626069827,1.4179,3120.9,3120.8,1.4735529]
[1765626077522,1.4179,3120.9,3120.8,0.7082529]
[1765626079130,1.4179,3120.9,3120.8,1.4735529]
[1765626090140,0.7129,3120.9,3120.8,1.4735529]
[1765626091044,4.26158381,3121.4,3120.8,1.4735529]
[1765626091241,1.10071279,3121.3,3120.8,1.4735529]
[1765626091434,2.53361279,3121.2,3121.1,0.7573]
[1765626091936,2.53361279,3121.2,3121.1,1.4727]
[1765626094341,2.53361279,3121.2,3121.1,0.7573]
[1765626095045,1.4329,3120.9,3120.8,1.4812529]
[1765626095242,0.7286,3120.9,3120.8,1.4812529]
[1765626095442,1.4329,3120.9,3120.8,1.4812529]
[1765626096942,1.4329,3120.9,3120.8,0.0085529]
[1765626097739,1.4329,3120.9,3120.8,0.7658529]
[1765626098047,2.48674021,3120.9,3120.8,0.7658529]
[1765626099644,1.4329,3120.9,3120.8,1.4812529]
[1765626099840,1.4329,3121.3,3121.2,0.7573]
[1765626100051,2.5336706,3121.3,3121.2,1.4727]
[1765626101240,1.4329,3121.3,3121.2,1.4727]
[1765626104738,2.48674021,3121.3,3120.8,1.06239311]
[1765626104940,0.7286,3120.9,3120.8,2.53509311]
[1765626105240,1.4329,3120.9,3120.8,2.53509311]
[1765626105543,1.4329,3120.9,3120.8,1.4812529]
[1765626105744,1.4329,3120.9,3120.8,0.7658529]
[1765626107340,1.4329,3120.9,3120.8,1.4812529]
[1765626107843,1.4329,3120.9,3120.8,0.7658529]
[1765626109547,1.4329,3120.9,3120.8,1.4812529]
[1765626112955,1.4329,3120.9,3120.8,0.7658529]
[1765626113455,1.4329,3120.9,3120.8,1.4812529]
[1765626115854,1.4329,3120.9,3120.8,0.7658529]
[1765626120553,1.4329,3120.9,3120.8,0.0085529]
[1765626120850,2.48663089,3120.9,3120.8,0.0085529]
[1765626126254,2.48663089,3120.9,3120.3,1.05373089]
[1765626126255,1.4093,3120.3,3120.2,4.6942]
[1765626126562,1.8723,3120.5,3120.4,1.4864]
[1765626127353,1.8723,3120.5,3120.4,0.76283023]
[1765626128863,1.8723,3120.5,3120.4,1.48953023]
[1765626129063,1.8723,3120.5,3120.4,0.00313023]
[1765626129064,6.13383089,3120.5,3120.4,0.00313023]
[1765626129262,7.23235266,3120.5,3120.4,0.00313023]
[1765626131354,7.23235266,3120.5,3119.5,0.58096]
[1765626131355,1.4093,3120.2,3118.5,0.4462]
[1765626131564,1.05373089,3119.9,3119.5,0.4462]
[1765626131863,1.05373089,3119.9,3119.5,1.2059]
[1765626131864,4.26153089,3119.6,3119.5,1.2059]
[1765626132066,4.26153089,3119.6,3119.5,0.4462]
[1765626132362,4.26480501,3119.6,3119.5,0.0025504]
[1765626132559,4.26480501,3119.6,3119.5,0.4487504]
[1765626135062,4.26480501,3119.6,3119.5,0.0025504]
[1765626135262,4.26480501,3119.6,3119.5,0.4487504]
[1765626135865,5.3185359,3119.6,3119.0,0.4462]
[1765626136059,4.26153089,3119.1,3119.0,0.4462]
[1765626136865,4.26153089,3119.1,3119.0,0.44878063]
[1765626138263,3.2078,3119.1,3119.0,0.00258063]
[1765626138475,3.2078,3119.1,3119.0,0.44878063]
[1765626140261,3.2078,3119.1,3118.5,0.4462]
[1765626140466,1.05373089,3118.6,3118.5,1.9326]
[1765626140767,3.2078,3118.7,3118.6,1.4864]
[1765626141162,3.2078,3118.7,3118.6,1.48942496]
[1765626142769,4.26153089,3118.7,3118.6,1.48942496]
[1765626144272,4.26153089,3118.7,3118.6,0.76272496]
[1765626144771,4.26153089,3118.7,3118.6,0.00302496]
[1765626144964,4.26153089,3118.7,3118.6,0.70752496]
[1765626145570,4.26153089,3118.7,3118.6,0.00302496]
[1765626146171,4.2632498,3118.7,3118.6,0.00302496]
[1765626151477,1.0554498,3118.7,3118.6,0.00302496]
[1765626151677,4.2632498,3118.7,3118.6,0.00302496]
[1765626154773,5.3186996,3118.7,3118.6,0.00302496]
[1765626155887,4.30012979,3118.7,3118.6,0.00302496]
[1765626156081,5.3186996,3118.7,3118.6,0.00302496]
[1765626156384,6.41102878,3118.7,3118.6,0.00302496]
[1765626156973,4.30012918,3118.7,3118.6,0.00302496]
[1765626157186,5.35557898,3118.7,3118.6,0.70752496]
[1765626157785,5.35557898,3118.7,3118.6,0.00302496]
[1765626159979,5.35573485,3118.7,3118.6,0.00302496]
[1765626160688,5.35573485,3118.7,3118.6,0.70752496]
[1765626161087,5.35573485,3118.7,3118.6,0.00302496]
[1765626162789,2.14793485,3118.7,3118.6,0.00302496]
[1765626162993,5.35573485,3118.7,3118.6,0.00302496]
[1765626166988,6.41134052,3118.7,3118.6,0.00302496]
[1765626167788,5.35573485,3118.7,3118.6,0.00302496]
[1765626167987,6.41134052,3118.7,3118.6,0.00302496]
[1765626168189,8.12124252,3118.7,3118.6,0.00302496]
[1765626168696,12.41134052,3118.7,3117.5,1.1507]
[1765626168899,1.05560567,3117.6,3117.5,1.8689]
[1765626169097,2.14793485,3117.6,3117.5,1.8689]
[1765626169785,2.14793485,3117.6,3117.5,1.87203785]
[1765626171999,2.14793485,3117.6,3117.5,1.15383785]
[1765626172990,2.14793485,3117.6,3117.5,0.44933785]
[1765626174598,2.14793485,3117.6,3117.5,1.87203785]